fUST/lending_fUST_20250717
["ID","MTS","AMOUNT","RATE_DAILY","PERIOD"]
[372790548,1752763838458,-460.0,0.00016522,2]
[372790549,1752763838467,-460.0,0.00016522,2]
[372790550,1752763838477,-385.63443418,0.00016522,2]
[372790551,1752763838489,-74.36556582,0.00016522,2]
[372790552,1752763838499,-460.0,0.00016522,2]
[372790553,1752763838509,-460.0,0.00016522,2]
[372790554,1752763838519,-460.0,0.00016522,2]
[372790555,1752763838528,-460.0,0.00016522,2]
[372790556,1752763838538,-460.0,0.00016522,2]
[372790557,1752763838548,-460.0,0.00016522,2]
[372790558,1752763838558,-440.33663325,0.00016522,2]
[372790559,1752763838567,-460.0,0.00016522,2]
[372790560,1752763838577,-460.0,0.00016522,2]
[372790561,1752763838586,-460.0,0.00016522,2]
[372790562,1752763838595,-500.0,0.00016522,2]
[372790563,1752763838605,-500.0,0.00016522,2]
[372790564,1752763838615,-500.0,0.00016522,2]
[372790565,1752763838624,-500.0,0.00016522,2]
[372790566,1752763838633,-500.0,0.00016522,2]
[372790567,1752763838645,-232.91507742,0.00016522,2]
[372790568,1752763838656,-500.0,0.00016522,2]
[372790569,1752763838665,-460.0,0.00016522,2]
[372790570,1752763838676,-460.0,0.00016522,2]
[372790571,1752763838687,-460.0,0.00016523,2]
[372790572,1752763838696,-460.0,0.00016523,2]
[372790573,1752763838706,-460.0,0.00016523,2]
[372790574,1752763838716,-262.96757718,0.00016523,2]
[372790575,1752763838727,-460.0,0.00016523,2]
[372790576,1752763838737,-460.0,0.00016523,2]
[372790578,1752763838747,-460.0,0.00016523,2]
[372790579,1752763838758,-460.0,0.00016523,2]
[372790580,1752763838768,-460.0,0.00016523,2]
[372790581,1752763838777,-420.0,0.00016523,2]
[372790582,1752763838786,-460.0,0.00016523,2]
[372790583,1752763838795,-150.14370288,0.00016523,2]
[372790584,1752763838805,-460.0,0.00016523,2]
[372790585,1752763838815,-460.0,0.00016523,2]
[372790586,1752763838824,-432.4,0.00016523,2]
[372790587,1752763838833,-460.0,0.00016523,2]
[372790588,1752763838844,-460.0,0.00016523,2]
[372790589,1752763838853,-460.0,0.00016523,2]
[372790590,1752763838862,-460.0,0.00016523,2]
[372790591,1752763838871,-460.0,0.00016523,2]
[372790592,1752763838881,-464.3584912,0.00016523,2]
[372790593,1752763838891,-460.0,0.00016523,2]
[372790594,1752763838900,-468.11247826,0.00016523,2]
[372790595,1752763838910,-460.0,0.00016523,2]
[372790596,1752763838919,-460.0,0.00016523,2]
[372790597,1752763838930,-460.0,0.00016523,2]
[372790598,1752763838940,-500.0,0.00016523,2]
[372790599,1752763838949,-460.0,0.00016523,2]
[372790600,1752763838959,-460.0,0.00016523,2]
[372790601,1752763838968,-460.0,0.00016523,2]
[372790602,1752763838978,-460.0,0.00016523,2]
[372790603,1752763838987,-460.0,0.00016523,2]
[372790604,1752763838996,-460.0,0.00016523,2]
[372790605,1752763839006,-124.39447399,0.00016523,2]
[372790606,1752763839017,-323.40939634,0.00016523,2]
[372790607,1752763839029,-898.38612967,0.00016523,2]
[372790608,1752763839038,-56.97772638,0.00016523,2]
[372790609,1752763839049,-403.02227362,0.00016523,2]
[372790610,1752763839059,-460.0,0.00016523,2]
[372790611,1752763839067,-460.0,0.00016523,2]
[372790612,1752763839077,-460.0,0.00016523,2]
[372790613,1752763839086,-460.0,0.00016523,2]
[372790614,1752763839095,-597.94,0.00016523,2]
[372790615,1752763839104,-460.0,0.00016523,2]
[372790616,1752763839113,-460.0,0.00016523,2]
[372790617,1752763839123,-460.0,0.00016524,2]
[372790618,1752763839132,-460.0,0.00016524,2]
[372790619,1752763839142,-460.0,0.00016524,2]
[372790620,1752763839151,-465.94155733,0.00016524,2]
[372790621,1752763839161,-460.0,0.00016524,2]
[372790622,1752763839170,-460.0,0.00016524,2]
[372790623,1752763839180,-460.0,0.00016524,2]
[372790624,1752763839190,-460.0,0.00016524,2]
[372790625,1752763839199,-355.88784711,0.00016524,2]
[372790626,1752763839207,-460.0,0.00016524,2]
[372790627,1752763839216,-460.0,0.00016524,2]
[372790628,1752763839225,-460.0,0.00016524,2]
[372790629,1752763839234,-460.0,0.00016524,2]
[372790630,1752763839243,-460.0,0.00016524,2]
[372790631,1752763839252,-460.0,0.00016524,2]
[372790632,1752763839262,-1458.0,0.00016524,2]
[372790633,1752763839275,-485.83,0.00016524,2]
[372790634,1752763839286,-857.12,0.00016524,2]
[372790635,1752763839295,-463.15845628,0.00016524,2]
[372790636,1752763839305,-462.52691973,0.00016524,2]
[372790637,1752763839315,-460.0,0.00016524,2]
[372790638,1752763839325,-460.0,0.00016524,2]
[372790639,1752763839335,-532.20481744,0.00016524,2]
[372790640,1752763839344,-461.48908098,0.00016524,2]
[372790641,1752763839353,-500.0,0.00016524,2]
[372790642,1752763839362,-460.0,0.00016524,2]
[372790643,1752763839372,-460.0,0.00016524,2]
[372790644,1752763839381,-460.0,0.00016524,2]
[372790645,1752763839391,-876.28,0.00016524,2]
[372790646,1752763839401,-460.0,0.00016524,2]
[372790647,1752763839410,-500.0,0.00016524,2]
[372790648,1752763839419,-460.0,0.00016524,2]
[372790649,1752763839428,-460.0,0.00016524,2]
[372790650,1752763839437,-460.0,0.00016524,2]
[372790651,1752763839447,-637.26,0.00016524,2]
[372790652,1752763839456,-460.0,0.00016524,2]
[372790653,1752763839465,-460.0,0.00016525,2]
[372790654,1752763839474,-414.24,0.00016525,2]
[372790655,1752763839483,-462.56936851,0.00016525,2]
[372790656,1752763839493,-463.75197737,0.00016525,2]
[372790657,1752763839502,-465.07171616,0.00016525,2]
[372790658,1752763839512,-460.0,0.00016525,2]
[372790659,1752763839522,-199.68721591,0.00016525,2]
[372790660,1752763839531,-460.0,0.00016525,2]
[372790661,1752763839541,-465.77527968,0.00016525,2]
[372790662,1752763839551,-460.0,0.00016525,2]
[372790663,1752763839560,-460.0,0.00016525,2]
[372790664,1752763839570,-460.0,0.00016526,2]
[372790665,1752763839579,-460.0,0.00016526,2]
[372790666,1752763839589,-109.56080557,0.00016526,2]
[372790667,1752763839601,-219.77069808,0.00016526,2]
[372790668,1752763839611,-460.0,0.00016526,2]
[372790669,1752763839620,-460.0,0.00016526,2]
[372790670,1752763839630,-460.0,0.00016526,2]
[372790671,1752763839639,-335.12527343,0.00016703,2]
[372790672,1752763839653,-184.23,0.00016786,3]
[372790673,1752763839662,-535.81,0.00016787,3]
[372790674,1752763839671,-267.9,0.00016787,3]
[372790675,1752763839681,-803.73,0.00016787,3]
[372790676,1752763839692,-368.47,0.00016787,3]
[372790677,1752763839702,-1071.61,0.00016788,3]
[372790678,1752763839711,-460.0,0.00016793,2]
[372790679,1752763839722,-1242.92,0.00016793,2]
[372790680,1752763839732,-460.0,0.00016793,2]
[372790681,1752763839741,-460.0,0.00016793,2]
[372790682,1752763839751,-915.79,0.00016793,2]
[372790683,1752763839760,-460.0,0.00016793,2]
[372790684,1752763839769,-460.0,0.00016793,2]
[372790685,1752763839779,-460.0,0.00016793,2]
[372790686,1752763839789,-560.66,0.00016793,2]
[372790687,1752763839798,-460.0,0.00016793,2]
[372790688,1752763839808,-460.0,0.00016793,2]
[372790689,1752763839817,-460.0,0.00016793,2]
[372790690,1752763839827,-460.0,0.00016795,2]
[372790691,1752763839837,-1865.21,0.00016795,2]
[372790692,1752763839846,-460.0,0.00016795,2]
[372790693,1752763839855,-936.48,0.00016795,2]
[372790694,1752763839865,-460.0,0.00016795,2]
[372790695,1752763839874,-460.0,0.00016796,2]
[372790696,1752763839884,-460.0,0.00016796,2]
[372790697,1752763839895,-460.0,0.00016796,2]
[372790698,1752763839904,-460.0,0.00016796,2]
[372790699,1752763839914,-460.0,0.00016796,2]
[372790700,1752763839925,-460.0,0.00016796,2]
[372790701,1752763839935,-460.0,0.00016796,2]
[372790702,1752763839944,-460.0,0.00016796,2]
[372790703,1752763839954,-559.4,0.00016796,2]
[372790704,1752763839963,-460.0,0.00016796,2]
[372790705,1752763839978,-460.0,0.00016796,2]
[372790706,1752763839991,-460.0,0.00016796,2]
[372790707,1752763840000,-466.08153271,0.00016796,2]
[372790709,1752763840010,-460.0,0.00016796,2]
[372790710,1752763840020,-460.0,0.00016796,2]
[372790711,1752763840029,-460.0,0.00016796,2]
[372790712,1752763840039,-460.0,0.00016796,2]
[372790713,1752763840049,-460.0,0.00016796,2]
[372790714,1752763840058,-460.0,0.00016796,2]
[372790715,1752763840069,-460.0,0.00016796,2]
[372790717,1752763840078,-460.0,0.00016796,2]
[372790718,1752763840088,-460.0,0.00016796,2]
[372790719,1752763840097,-460.0,0.00016796,2]
[372790720,1752763840107,-329.99917035,0.00016796,2]
[372790721,1752763840116,-460.0,0.00016796,2]
[372790722,1752763840126,-460.0,0.00016796,2]
[372790723,1752763840136,-460.0,0.00016796,2]
[372790725,1752763840146,-460.0,0.00016797,2]
[372790726,1752763840155,-460.0,0.00016797,2]
[372790727,1752763840165,-460.0,0.00016797,2]
[372790728,1752763840174,-460.0,0.00016797,2]
[372790729,1752763840184,-460.0,0.00016797,2]
[372790730,1752763840193,-460.0,0.00016797,2]
[372790731,1752763840203,-460.0,0.00016797,2]
[372790732,1752763840212,-460.0,0.00016797,2]
[372790733,1752763840222,-460.0,0.00016797,2]
[372790734,1752763840232,-460.0,0.00016797,2]
[372790735,1752763840241,-460.0,0.00016797,2]
[372790736,1752763840251,-460.0,0.00016797,2]
[372790737,1752763840260,-460.0,0.00016797,2]
[372790738,1752763840269,-460.0,0.00016797,2]
[372790739,1752763840278,-460.0,0.00016797,2]
[372790740,1752763840288,-460.0,0.00016797,2]
[372790741,1752763840298,-470.37658101,0.00016797,2]
[372790742,1752763840307,-460.0,0.00016797,2]
[372790743,1752763840317,-460.0,0.00016797,2]
[372790744,1752763840326,-1346.19,0.00016797,2]
[372790745,1752763840335,-460.0,0.00016797,2]
[372790746,1752763840345,-460.0,0.00016797,2]
[372790747,1752763840354,-460.0,0.00016797,2]
[372790748,1752763840363,-597.94,0.00016797,2]
[372790749,1752763840372,-460.0,0.00016797,2]
[372790750,1752763840382,-460.0,0.00016798,2]
[372790751,1752763840392,-460.0,0.00016798,2]
[372790752,1752763840401,-222.2058019,0.00016798,2]
[372790753,1752763840411,-460.0,0.00016798,2]
[372790755,1752763840420,-460.0,0.00016798,2]
[372790756,1752763840430,-460.0,0.00016798,2]
[372790758,1752763840440,-460.0,0.00016798,2]
[372790759,1752763840450,-1458.0,0.00016798,2]
[372790760,1752763840460,-485.83,0.00016798,2]
[372790761,1752763840470,-857.12,0.00016798,2]
[372790762,1752763840480,-468.44487266,0.00016798,2]
[372790763,1752763840489,-460.0,0.00016798,2]
[372790764,1752763840498,-460.0,0.00016798,2]
[372790765,1752763840508,-876.28,0.00016798,2]
[372790766,1752763840518,-460.0,0.00016798,2]
[372790767,1752763840527,-460.0,0.00016798,2]
[372790768,1752763840537,-637.26,0.00016798,2]
[372790769,1752763840547,-460.0,0.00016798,2]
[372790770,1752763840556,-460.0,0.00016799,2]
[372790771,1752763840566,-460.0,0.000168,2]
[372790772,1752763840575,-460.0,0.000168,2]
[372790773,1752763840585,-8555.60965026,0.000169,2]
[372790774,1752763840594,-500.0,0.00016989,2]
[372790775,1752763840604,-6396.0,0.00017,5]
[372790776,1752763840613,-552.72,0.00017059,3]
[372790777,1752763840623,-1242.92,0.00017067,2]
[372790778,1752763840632,-460.0,0.00017067,2]
[372790779,1752763840644,-460.0,0.00017067,2]
[372790780,1752763840655,-915.79,0.00017067,2]
[372790781,1752763840664,-460.0,0.00017067,2]
[372790782,1752763840676,-234.57560634,0.00017067,2]
[372790783,1752763840686,-460.0,0.00017067,2]
[372790784,1752763840696,-560.66,0.00017067,2]
[372790785,1752763840706,-460.0,0.00017067,2]
[372790786,1752763840716,-460.0,0.00017067,2]
[372790787,1752763840725,-460.0,0.00017067,2]
[372790788,1752763840734,-1865.21,0.00017069,2]
[372790789,1752763840744,-936.48,0.00017069,2]
[372790790,1752763840753,-460.0,0.00017069,2]
[372790791,1752763840763,-500.0,0.0001707,2]
[372790792,1752763840772,-414.79177054,0.0001707,2]
[372790793,1752763840781,-508.68172263,0.0001707,2]
[372790794,1752763840791,-500.0,0.0001707,2]
[372790795,1752763840799,-500.0,0.0001707,2]
[372790796,1752763840809,-500.0,0.0001707,2]
[372790797,1752763840819,-460.0,0.0001707,2]
[372790798,1752763840829,-460.0,0.0001707,2]
[372790799,1752763840839,-582.33980233,0.0001707,2]
[372790800,1752763840848,-460.0,0.0001707,2]
[372790801,1752763840857,-460.0,0.0001707,2]
[372790802,1752763840872,-166.78,0.0001707,2]
[372790803,1752763840881,-460.0,0.0001707,2]
[372790804,1752763840891,-460.0,0.0001707,2]
[372790805,1752763840900,-460.0,0.0001707,2]
[372790806,1752763840909,-460.0,0.0001707,2]
[372790807,1752763840919,-460.0,0.0001707,2]
[372790808,1752763840943,-460.0,0.0001707,2]
[372790809,1752763840953,-460.0,0.0001707,2]
[372790810,1752763840963,-460.0,0.0001707,2]
[372790811,1752763840972,-460.0,0.0001707,2]
[372790812,1752763840981,-460.0,0.0001707,2]
[372790813,1752763840990,-460.0,0.0001707,2]
[372790814,1752763840999,-460.0,0.0001707,2]
[372790815,1752763841008,-460.0,0.00017071,2]
[372790816,1752763841017,-460.0,0.00017071,2]
[372790817,1752763841026,-460.0,0.00017071,2]
[372790818,1752763841035,-245.5,0.00017071,2]
[372790820,1752763841044,-460.0,0.00017071,2]
[372790821,1752763841054,-460.0,0.00017071,2]
[372790822,1752763841063,-460.0,0.00017071,2]
[372790823,1752763841072,-460.0,0.00017071,2]
[372790824,1752763841082,-460.0,0.00017071,2]
[372790825,1752763841091,-460.0,0.00017071,2]
[372790826,1752763841100,-460.0,0.00017071,2]
[372790827,1752763841109,-460.0,0.00017071,2]
[372790828,1752763841118,-460.0,0.00017071,2]
[372790829,1752763841127,-1346.19,0.00017071,2]
[372790830,1752763841136,-460.0,0.00017071,2]
[372790831,1752763841145,-597.94,0.00017071,2]
[372790832,1752763841154,-460.0,0.00017072,2]
[372790833,1752763841163,-202.80415302,0.00017072,2]
[372790834,1752763841172,-460.0,0.00017072,2]
[372790835,1752763841186,-1458.0,0.00017072,2]
[372790836,1752763841195,-485.83,0.00017072,2]
[372790837,1752763841205,-857.12,0.00017072,2]
[372790838,1752763841214,-460.0,0.00017072,2]
[372790839,1752763841224,-876.28,0.00017072,2]
[372790840,1752763841234,-460.0,0.00017072,2]
[372790841,1752763841243,-637.26,0.00017072,2]
[372790842,1752763841252,-460.0,0.00017072,2]
[372790843,1752763841262,-510.04701595,0.00017073,2]
[372790844,1752763841271,-460.0,0.00017074,2]
[372790845,1752763841280,-379.02783042,0.00017132,2]
[372790846,1752763841290,-500.0,0.00017132,2]
[372790847,1752763841299,-158.06559516,0.00017132,2]
[372790848,1752763841309,-500.0,0.00017161,2]
[372790849,1752763841451,-500.0,0.00017161,2]
[372790850,1752763841463,-500.0,0.00017161,2]
[372790851,1752763841473,-8555.60965006,0.0001721,2]
[372790852,1752763841483,-1242.92,0.00017341,2]
[372790853,1752763841492,-460.0,0.00017341,2]
[372790854,1752763841502,-915.79,0.00017341,2]
[372790855,1752763841511,-460.0,0.00017341,2]
[372790856,1752763841521,-560.66,0.00017341,2]
[372790857,1752763841531,-534.66189906,0.00017341,2]
[372790858,1752763841541,-460.0,0.00017341,2]
[372790859,1752763841551,-1865.21,0.00017343,2]
[372790860,1752763841561,-936.48,0.00017343,2]
[372790861,1752763841570,-460.0,0.00017343,2]
[372790862,1752763841579,-460.0,0.00017344,2]
[372790864,1752763841588,-460.0,0.00017344,2]
[372790865,1752763841597,-460.0,0.00017344,2]
[372790866,1752763841606,-460.0,0.00017344,2]
[372790868,1752763841615,-460.0,0.00017344,2]
[372790870,1752763841624,-252.90709884,0.00017344,2]
[372790871,1752763841633,-460.0,0.00017344,2]
[372790872,1752763841642,-460.0,0.00017344,2]
[372790873,1752763841654,-460.0,0.00017344,2]
[372790874,1752763841663,-466.75,0.00017344,2]
[372790875,1752763841672,-189.93,0.00017344,2]
[372790876,1752763841684,-460.0,0.00017344,2]
[372790877,1752763841694,-460.0,0.00017345,2]
[372790878,1752763841703,-460.0,0.00017345,2]
[372790879,1752763841713,-460.0,0.00017345,2]
[372790880,1752763841724,-460.0,0.00017345,2]
[372790881,1752763841734,-460.0,0.00017345,2]
[372790882,1752763841743,-460.0,0.00017345,2]
[372790883,1752763841752,-460.0,0.00017345,2]
[372790884,1752763841761,-460.0,0.00017345,2]
[372790885,1752763841771,-460.0,0.00017345,2]
[372790886,1752763841780,-1346.19,0.00017345,2]
[372790887,1752763841790,-460.0,0.00017345,2]
[372790888,1752763841799,-597.94,0.00017345,2]
[372790889,1752763841808,-460.0,0.00017346,2]
[372790890,1752763841817,-460.0,0.00017346,2]
[372790891,1752763841826,-1458.0,0.00017346,2]
[372790892,1752763841835,-485.83,0.00017346,2]
[372790893,1752763841843,-857.12,0.00017346,2]
[372790894,1752763841852,-876.28,0.00017346,2]
[372790895,1752763841861,-460.0,0.00017346,2]
[372790896,1752763841871,-637.26,0.00017346,2]
[372790897,1752763841881,-605.4,0.00017348,2]
[372790898,1752763841891,-503.24985721,0.00017496,2]
[372790899,1752763841901,-8555.60965006,0.00017521,2]
[372790900,1752763841910,-410.45934692,0.00017537,2]
[372790901,1752763841920,-1242.92,0.00017615,2]
[372790902,1752763841932,-460.0,0.00017615,2]
[372790903,1752763841941,-915.79,0.00017615,2]
[372790904,1752763841951,-460.0,0.00017615,2]
[372790905,1752763841960,-560.66,0.00017615,2]
[372790906,1752763841970,-242.8,0.00017615,2]
[372790907,1752763841979,-1865.21,0.00017617,2]
[372790908,1752763841988,-936.48,0.00017617,2]
[372790909,1752763841998,-460.0,0.00017617,2]
[372790910,1752763842007,-500.0,0.00017618,2]
[372790911,1752763842016,-270.21104171,0.00017618,2]
[372790912,1752763842026,-460.0,0.00017618,2]
[372790913,1752763842035,-460.0,0.00017618,2]
[372790914,1752763842044,-460.0,0.00017618,2]
[372790915,1752763842054,-460.0,0.00017618,2]
[372790916,1752763842063,-460.0,0.00017618,2]
[372790917,1752763842073,-460.0,0.00017618,2]
[372790918,1752763842082,-460.0,0.00017618,2]
[372790919,1752763842092,-460.0,0.00017619,2]
[372790920,1752763842101,-517.8422192,0.00017619,2]
[372790921,1752763842111,-460.0,0.00017619,2]
[372790922,1752763842120,-460.0,0.00017619,2]
[372790923,1752763842130,-460.0,0.00017619,2]
[372790924,1752763842139,-460.0,0.00017619,2]
[372790925,1752763842148,-1346.19,0.00017619,2]
[372790926,1752763842158,-460.0,0.00017619,2]
[372790927,1752763842167,-597.94,0.00017619,2]
[372790928,1752763842178,-460.0,0.0001762,2]
[372790929,1752763842187,-460.0,0.0001762,2]
[372790930,1752763842196,-1458.0,0.0001762,2]
[372790931,1752763842206,-485.83,0.0001762,2]
[372790932,1752763842215,-857.12,0.0001762,2]
[372790933,1752763842225,-876.28,0.0001762,2]
[372790934,1752763842234,-460.0,0.0001762,2]
[372790935,1752763842243,-637.26,0.0001762,2]
[372790936,1752763842253,-800.0,0.00017646,2]
[372790937,1752763842262,-500.0,0.0001768,2]
[372790938,1752763842271,-1000.0,0.00017709,2]
[372790939,1752763842280,-160.0,0.00017764,2]
[372790940,1752763842289,-8555.60965006,0.00017831,2]
[372790941,1752763842299,-500.69357684,0.00017848,2]
[372790942,1752763842308,-500.0,0.00017848,2]
[372790943,1752763842317,-500.0,0.00017848,2]
[372790944,1752763842326,-537.68235638,0.00017848,2]
[372790945,1752763842336,-500.0,0.00017848,2]
[372790946,1752763842345,-467.87344589,0.00017848,2]
[372790947,1752763842355,-250.2230006,0.00017848,2]
[372790948,1752763842365,-500.0,0.00017848,2]
[372790949,1752763842374,-500.0,0.00017848,2]
[372790950,1752763842384,-1242.92,0.00017889,2]
[372790951,1752763842393,-460.0,0.00017889,2]
[372790952,1752763842402,-915.79,0.00017889,2]
[372790953,1752763842412,-460.0,0.00017889,2]
[372790954,1752763842421,-560.66,0.00017889,2]
[372790955,1752763842432,-1865.21,0.00017891,2]
[372790956,1752763842441,-936.48,0.00017891,2]
[372790957,1752763842450,-460.0,0.00017891,2]
[372790958,1752763842460,-460.0,0.00017892,2]
[372790959,1752763842469,-460.0,0.00017892,2]
[372790960,1752763842479,-460.0,0.00017892,2]
[372790961,1752763842488,-460.0,0.00017892,2]
[372790962,1752763842498,-460.0,0.00017892,2]
[372790963,1752763842507,-449.91,0.00017892,2]
[372790964,1752763842517,-460.0,0.00017893,2]
[372790965,1752763842526,-460.0,0.00017893,2]
[372790966,1752763842536,-460.0,0.00017893,2]
[372790967,1752763842546,-460.0,0.00017893,2]
[372790968,1752763842555,-1346.19,0.00017893,2]
[372790969,1752763842565,-460.0,0.00017893,2]
[372790970,1752763842574,-597.94,0.00017893,2]
[372790971,1752763842584,-460.0,0.00017894,2]
[372790972,1752763842593,-460.0,0.00017894,2]
[372790973,1752763842603,-1458.0,0.00017894,2]
[372790974,1752763842612,-485.83,0.00017894,2]
[372790975,1752763842622,-857.12,0.00017894,2]
[372790976,1752763842631,-876.28,0.00017894,2]
[372790977,1752763842641,-597.97,0.00017894,2]
[372790978,1752763842654,-637.26,0.00017894,2]
[372790979,1752763842663,-420.0,0.0001805,2]
[372790980,1752763842673,-9839.10309467,0.00018068,2]
[372790981,1752763842683,-8555.60965006,0.00018141,2]
[372790982,1752763842693,-1071.62,0.00018157,3]
[372790983,1752763842702,-535.8,0.00018157,3]
[372790984,1752763842712,-2143.22,0.00018158,3]
[372790985,1752763842722,-1242.92,0.00018163,2]
[372790986,1752763842732,-460.0,0.00018163,2]
[372790987,1752763842741,-915.79,0.00018163,2]
[372790988,1752763842751,-460.0,0.00018163,2]
[372790989,1752763842762,-560.66,0.00018163,2]
[372790990,1752763842771,-1865.21,0.00018165,2]
[372790991,1752763842780,-936.48,0.00018165,2]
[372790992,1752763842789,-460.0,0.00018165,2]
[372790993,1752763842799,-460.0,0.00018166,2]
[372790994,1752763842808,-460.0,0.00018166,2]
[372790995,1752763842818,-460.0,0.00018166,2]
[372790996,1752763842827,-463.48870386,0.00018166,2]
[372790997,1752763842837,-460.0,0.00018166,2]
[372790998,1752763842846,-460.0,0.00018167,2]
[372790999,1752763842856,-295.27385169,0.00018167,2]
[372791000,1752763842866,-460.0,0.00018167,2]
[372791001,1752763842875,-189.02,0.00018167,2]
[372791002,1752763842884,-1346.19,0.00018167,2]
[372791003,1752763842893,-460.0,0.00018167,2]
[372791004,1752763842903,-597.94,0.00018167,2]
[372791005,1752763842913,-460.0,0.00018168,2]
[372791006,1752763842922,-460.0,0.00018168,2]
[372791007,1752763842934,-1458.0,0.00018168,2]
[372791008,1752763842943,-485.83,0.00018168,2]
[372791009,1752763842952,-857.12,0.00018168,2]
[372791010,1752763842961,-876.28,0.00018168,2]
[372791011,1752763842970,-637.26,0.00018168,2]
[372791012,1752763842978,-1721.25549788,0.0001825,2]
[372791013,1752763842988,-1500.0,0.00018257,2]
[372791014,1752763842998,-260.0,0.00018312,2]
[372791015,1752763843008,-160.0,0.00018339,2]
[372791016,1752763843018,-160.0,0.00018339,2]
[372791017,1752763843027,-230.85589339,0.00018339,2]
[372791018,1752763843037,-215.59244943,0.00018339,2]
[372791019,1752763843046,-839.15451687,0.00018339,2]
[372791020,1752763843056,-214.44804168,0.00018339,2]
[372791021,1752763843065,-476.16111942,0.00018339,2]
[372791022,1752763843075,-160.0,0.00018339,2]
[372791023,1752763843084,-525.67742785,0.00018339,2]
[372791025,1752763843093,-12607.95677342,0.00018339,2]
[372791027,1752763843103,-160.0,0.00018339,2]
[372791029,1752763843112,-160.0,0.00018339,2]
[372791030,1752763843121,-160.0,0.00018341,2]
[372791032,1752763843131,-160.0,0.00018341,2]
[372791033,1752763843140,-160.0,0.00018341,2]
[372791034,1752763843149,-160.0,0.00018341,2]
[372791035,1752763843159,-160.0,0.00018341,2]
[372791036,1752763843168,-548.06828774,0.00018396,2]
[372791037,1752763843177,-502.35243242,0.00018396,2]
[372791038,1752763843189,-500.0,0.00018396,2]
[372791039,1752763843199,-1242.92,0.00018437,2]
[372791040,1752763843209,-460.0,0.00018437,2]
[372791041,1752763843218,-915.79,0.00018437,2]
[372791042,1752763843228,-460.0,0.00018437,2]
[372791043,1752763843237,-560.66,0.00018437,2]
[372791044,1752763843246,-1865.21,0.00018439,2]
[372791046,1752763843255,-936.48,0.00018439,2]
[372791047,1752763843264,-460.0,0.00018439,2]
[372791048,1752763843273,-460.0,0.0001844,2]
[372791050,1752763843283,-460.0,0.0001844,2]
[372791051,1752763843291,-341.95671776,0.0001844,2]
[372791052,1752763843300,-345.56030526,0.0001844,2]
[372791053,1752763843309,-280.36,0.00018441,2]
[372791054,1752763843319,-460.0,0.00018441,2]
[372791055,1752763843328,-1346.19,0.00018441,2]
[372791056,1752763843338,-460.0,0.00018441,2]
[372791057,1752763843347,-597.94,0.00018441,2]
[372791058,1752763843356,-460.0,0.00018442,2]
[372791059,1752763843365,-460.0,0.00018442,2]
[372791060,1752763843374,-1458.0,0.00018442,2]
[372791061,1752763843383,-485.83,0.00018442,2]
[372791062,1752763843392,-857.12,0.00018442,2]
[372791063,1752763843401,-876.28,0.00018442,2]